bitfinex-derivatives/quotes_ETHF0:USTF0_20240917
["timestamp","ask_amount","ask_price","bid_price","bid_amount"]
[1726607524634,0.42565,2348.8,2348.5,0.42568]
[1726607524833,2.40237,2348.7,2348.5,0.42568]
[1726607525028,4.26318945,2348.7,2348.5,0.42568]
[1726607525233,3.15937,2348.7,2348.5,0.42568]
[1726607525528,3.15937,2348.7,2348.2,2.22676471]
[1726607525529,0.4257,2348.5,2348.2,0.42574]
[1726607525735,2.33319824,2348.5,2348.3,0.42572]
[1726607526939,2.33319824,2348.5,2348.2,0.42574]
[1726607527137,0.7295,2348.4,2348.2,0.42574]
[1726607528832,0.7295,2348.4,2348.3,0.42573]
[1726607529938,0.7295,2348.4,2348.2,0.42573]
[1726607531135,0.7295,2348.4,2348.3,1.65573]
[1726607531836,0.7295,2348.4,2348.2,1.65574]
[1726607533235,1.10319824,2348.8,2348.5,0.42569]
[1726607533438,5.50179,2349.1,2348.7,0.42565]
[1726607533439,1.18061,2349.0,2348.7,0.42565]
[1726607533634,1.18062,2349.0,2348.7,1.65565]
[1726607533834,0.755,2349.0,2348.7,0.42565]
[1726607534136,1.1806,2349.0,2348.7,0.42565]
[1726607534339,0.755,2349.0,2348.7,0.42565]
[1726607534536,1.1806,2349.0,2348.7,0.42565]
[1726607536534,1.1806,2349.0,2348.8,0.42564]
[1726607537231,4.3884,2349.0,2348.8,0.42564]
[1726607541742,5.1541,2349.0,2348.8,0.42564]
[1726607543039,1.9463,2349.0,2348.8,0.42564]
[1726607543236,5.1541,2349.0,2348.8,0.42564]
[1726607543438,0.42564,2348.8,2348.6,2.70586]
[1726607543630,4.4378,2348.7,2348.4,1.5278]
[1726607543836,5.63376,2348.7,2348.5,0.42568]
[1726607544033,5.63376,2348.7,2348.4,1.5278]
[1726607544034,0.42567,2348.6,2348.4,1.9535]
[1726607544347,1.19148,2348.6,2348.4,0.4257]
[1726607544540,0.42571,2348.4,2348.1,2.2706]
[1726607544840,1.23,2348.3,2348.2,0.42573]
[1726607545139,1.6557,2348.5,2348.3,0.42571]
[1726607547139,0.7771,2348.4,2348.3,0.42571]
[1726607552446,0.7658,2348.6,2348.3,0.42571]
[1726607552646,1.5306,2348.6,2348.3,0.42571]
[1726607552846,1.95628,2348.6,2348.4,0.7808]
[1726607553848,0.7648,2348.6,2348.4,1.20651]
[1726607554044,0.7648,2348.6,2348.5,1.5672]
[1726607555640,0.7648,2348.6,2348.5,1.99289]
[1726607556643,0.7648,2348.6,2348.5,1.5672]
[1726607557044,0.7648,2348.6,2348.4,1.2065]
[1726607557243,1.23,2348.5,2348.4,0.7808]
[1726607557441,1.9728,2348.5,2348.4,1.20651]
[1726607559540,0.7428,2348.5,2348.4,1.20651]
[1726607562254,0.42573,2348.3,2348.0,0.42577]
[1726607562451,4.4378,2348.2,2348.0,0.42577]
[1726607562756,4.4378,2348.2,2348.1,0.42576]
[1726607562757,2.0257,2348.2,2348.1,0.42576]
[1726607562948,2.0257,2348.2,2347.8,2.2304]
[1726607562949,2.0257,2348.2,2348.0,0.42577]
[1726607563146,2.0257,2348.2,2347.8,2.2304]
[1726607563147,2.45145,2348.2,2347.8,2.2304]
[1726607563343,2.45145,2348.2,2347.9,0.4258]
[1726607563544,3.5535655,2348.2,2347.9,0.4258]
[1726607563749,1.23,2348.1,2348.0,0.42578]
[1726607564948,2.3321155,2348.1,2348.0,0.42578]
[1726607565955,1.1021155,2348.1,2348.0,0.42578]
[1726607568450,0.42583,2347.8,2347.4,1.11582621]
[1726607568655,0.42583,2347.8,2347.4,0.42588]
[1726607568656,1.5292202,2347.6,2347.4,0.42588]
[1726607568851,1.5292202,2347.6,2347.3,1.2097]
[1726607568852,1.1033602,2347.5,2347.3,1.2097]
[1726607569153,4.9148402,2347.5,2347.3,1.20971]
[1726607569355,1.1033602,2347.4,2347.3,1.20971]
[1726607569752,4.4889602,2347.5,2347.4,0.42589]
[1726607570348,4.9148302,2347.5,2347.3,1.2097]
[1726607570949,4.9148302,2347.5,2347.4,0.42589]
[1726607571650,4.4889602,2347.5,2347.4,0.42589]
[1726607572260,3.81147,2347.5,2347.4,0.42589]
[1726607572561,0.7256,2347.5,2347.4,0.42589]
[1726607572761,1.1033602,2347.6,2347.5,0.42587]
[1726607573261,2.3192102,2347.7,2347.5,0.42587]
[1726607574051,1.1033602,2347.6,2347.5,0.42587]
[1726607574248,1.1033602,2347.6,2347.3,0.7838]
[1726607574249,0.42588,2347.5,2347.3,0.4259]
[1726607574450,0.42588,2347.5,2346.8,4.27279]
[1726607574451,2.66,2347.4,2347.1,0.7345]
[1726607574656,3.08589,2347.4,2347.2,0.42591]
[1726607574855,3.08589,2347.4,2347.3,0.42591]
[1726607575045,3.08589,2347.4,2347.2,0.42591]
[1726607575248,3.08589,2347.4,2347.2,0.42592]
[1726607575249,3.0859,2347.4,2347.2,0.42592]
[1726607578046,6.2937,2347.4,2347.2,0.42592]
[1726607579358,0.42591,2347.3,2347.1,1.16043]
[1726607579749,0.42591,2347.3,2346.5,3.2078]
[1726607579750,6.92,2347.2,2346.5,3.2078]
[1726607579953,3.08597,2347.0,2346.6,0.8119]
[1726607580151,2.66,2347.0,2346.6,0.8119]
[1726607580364,4.65757,2347.0,2346.8,0.426]
[1726607580754,4.68678,2346.9,2346.8,0.426]
[1726607580955,0.42598,2346.9,2346.8,0.426]
[1726607581153,0.42599,2346.9,2346.7,0.42601]
[1726607581353,3.08599,2346.9,2346.7,0.42601]
[1726607581851,3.08599,2346.9,2346.6,1.23792]
[1726607581852,0.42601,2346.8,2346.6,1.23792]
[1726607582046,0.42601,2346.8,2346.0,0.21566104]
[1726607582047,0.42608,2346.4,2346.0,0.21566104]
[1726607582254,3.08608,2346.4,2346.2,0.42611]
[1726607582463,0.42611,2346.2,2345.9,1.5788]
[1726607582758,3.08611,2346.2,2346.0,0.42614]
[1726607583066,3.2078,2346.5,2346.2,0.42611]
[1726607583366,0.4261,2346.3,2345.9,1.0067307]
[1726607583661,0.4261,2346.3,2346.1,0.42611]
[1726607583861,0.42611,2346.2,2346.0,0.42613]
[1726607584050,0.75,2346.4,2346.1,0.42613]
[1726607584252,3.08611,2346.2,2345.9,4.0059]
[1726607584457,3.08612,2346.2,2345.9,4.0059]
[1726607584667,0.42613,2346.1,2345.9,3.63396]
[1726607584861,5.8678,2346.2,2345.9,0.42615]
[1726607585463,5.8678,2346.2,2346.0,0.42614]
[1726607585670,5.8678,2346.2,2345.9,0.42616]
[1726607585855,5.8678,2346.2,2346.0,0.42614]
[1726607586049,3.2078,2346.2,2346.0,0.42614]
[1726607586358,3.2078,2346.2,2345.7,7.01152398]
[1726607586559,3.2078,2346.2,2346.0,0.42614]
[1726607586751,3.2078,2346.2,2346.1,0.8188]
[1726607589963,10.1302,2346.2,2345.9,0.42615]
[1726607590157,5.8678,2346.2,2345.9,0.42615]
[1726607591059,5.8678,2346.2,2346.0,0.42614]
[1726607591759,6.29391,2346.2,2346.0,0.42614]
[1726607592466,6.29391,2346.2,2345.9,0.42615]
[1726607593159,6.29391,2346.2,2346.0,0.42614]
[1726607594964,3.2078,2346.2,2346.1,0.42613]
[1726607595270,3.63391,2346.2,2346.0,0.42614]
[1726607595866,3.2078,2346.2,2346.0,0.42614]
[1726607596057,3.2078,2346.2,2346.1,0.42613]
[1726607596575,7.4702,2346.2,2346.1,0.42613]
[1726607596863,7.4702,2346.2,2345.6,0.55199769]
[1726607597057,3.08617,2345.9,2345.7,1.2022]
[1726607597461,2.66,2345.9,2345.8,0.42618]
[1726607597967,3.4317,2345.9,2345.7,1.20219]
[1726607598170,3.85786,2345.9,2345.7,1.20219]
[1726607598559,0.7717,2345.9,2345.8,0.42618]
[1726607601977,0.42614,2346.1,2345.9,0.42616]
[1726607602169,1.18034,2346.1,2346.0,0.7739]
[1726607603066,0.7542,2346.1,2346.0,1.20005]
[1726607603269,3.2078,2346.2,2346.1,0.42613]
[1726607603472,3.2078,2346.2,2346.1,2.02203]
[1726607603676,3.2078,2346.2,2346.1,6.28443]
[1726607603871,3.9953,2346.9,2346.1,18.79142]
[1726607604067,3.2078,2346.9,2346.8,0.426]
[1726607605175,3.2078,2346.9,2346.6,2.55927824]
[1726607605176,3.2078,2346.9,2346.7,0.42601]
[1726607606571,3.2078,2346.9,2346.8,0.426]
[1726607608870,0.7683,2347.1,2346.6,2.89514321]
[1726607608871,0.7683,2347.1,2347.0,0.42596]
[1726607609086,0.7875,2347.2,2347.0,0.42596]
[1726607609087,3.2078,2347.3,2347.0,0.42596]
[1726607609277,3.2078,2347.3,2347.1,0.5502]
[1726607609278,3.63371,2347.3,2347.1,0.5502]
[1726607609976,3.63371,2347.3,2346.4,0.42606]
[1726607609977,6.92,2347.2,2346.4,0.42606]
[1726607610176,6.92,2347.2,2346.3,3.2078]
[1726607610177,6.29385,2346.6,2346.3,0.42609]
[1726607610384,0.5623,2346.5,2346.3,0.42609]
[1726607610588,0.5623,2346.5,2346.0,1.1086]
[1726607610589,2.66,2346.4,2346.0,1.1086]
[1726607610881,3.08608,2346.4,2346.1,0.42612]
[1726607611490,2.66,2346.4,2346.0,1.1086]
[1726607611793,0.42609,2346.3,2346.1,0.42612]
[1726607611988,0.4261,2346.3,2346.0,1.1086]
[1726607612185,2.66,2346.4,2346.2,0.42611]
[1726607612381,3.08608,2346.4,2346.0,1.1086]
[1726607612585,2.66,2346.4,2346.2,0.42611]
[1726607612791,3.08608,2346.4,2346.2,0.42611]
[1726607613396,2.66,2346.4,2346.2,0.42611]
[1726607613787,1.54127,2346.5,2346.2,0.42611]
[1726607613987,1.54127,2346.5,2346.3,0.42609]
[1726607614597,1.54127,2346.5,2346.2,0.4261]
[1726607615294,1.54127,2346.5,2346.0,1.6417]
[1726607616393,1.54127,2346.5,2346.3,0.42609]
[1726607617295,0.42607,2346.4,2346.2,0.4261]
[1726607619597,2.6446302,2346.5,2346.2,0.4261]
[1726607621605,1.5294302,2346.4,2346.2,0.4261]
[1726607623304,1.1033602,2346.4,2346.3,0.42609]
[1726607624006,1.65504031,2346.4,2346.3,0.42609]
[1726607625207,2.08111031,2346.4,2346.2,0.42609]
[1726607625404,1.10184183,2346.3,2346.2,0.4261]
[1726607626607,1.10184183,2346.4,2346.3,0.42609]
[1726607627007,1.10184183,2346.4,2346.2,0.42609]
[1726607627206,1.10184183,2346.4,2346.3,0.42609]
[1726607628493,3.19630031,2346.5,2346.3,0.42609]
[1726607628695,1.10214868,2346.4,2346.3,0.42609]
[1726607636701,1.10245595,2346.4,2346.3,0.42609]
[1726607640305,1.52863201,2346.4,2346.3,0.42609]
[1726607640507,2.08111031,2346.4,2346.3,0.42609]
[1726607644031,0.4261,2346.3,2346.2,0.4261]
[1726607644517,1.52894491,2346.3,2346.2,0.4261]
[1726607644710,2.08114031,2346.3,2346.2,0.4261]
[1726607647211,0.42612,2346.2,2346.1,0.42612]
[1726607647515,0.42613,2346.1,2346.0,1.1086]
[1726607647819,0.42617,2345.9,2345.8,0.42617]
[1726607648021,1.52934249,2345.9,2345.8,0.42617]
[1726607648318,1.10317249,2345.9,2345.8,0.42617]
[1726607648519,1.66057249,2345.9,2345.8,0.42617]
[1726607649421,2.08673249,2345.9,2345.8,0.42617]
[1726607650019,1.66057249,2345.9,2345.8,0.42617]
[1726607650614,0.42618,2345.8,2345.6,0.42621]
[1726607650914,4.30887249,2345.7,2345.4,0.42624]
[1726607651120,4.30887249,2345.7,2345.3,0.97797]
[1726607651121,1.52891802,2345.6,2345.3,0.97797]
[1726607651321,4.31048802,2345.5,2345.3,0.97797]
[1726607651622,1.65358802,2345.5,2345.4,0.42625]
[1726607651926,0.5509,2345.5,2345.4,0.42625]
[1726607655121,0.5509,2345.5,2345.2,1.1178]
[1726607655324,1.65358802,2345.5,2345.3,0.42626]
[1726607656924,1.65358802,2345.5,2345.4,0.42625]
[1726607657121,1.65358802,2345.5,2345.2,1.6547]
[1726607657321,2.07982802,2345.5,2345.2,2.08098]
[1726607657516,1.10268802,2345.4,2345.2,2.08098]
[1726607657719,2.07982802,2345.5,2345.2,2.08098]
[1726607657923,2.07982802,2345.5,2345.3,0.42627]
[1726607659524,2.07982802,2345.5,2345.3,0.42626]
[1726607660423,1.65358802,2345.5,2345.4,0.42625]
[1726607660629,0.5509,2345.5,2345.4,0.42625]
[1726607661433,0.5509,2345.5,2345.3,0.42626]
[1726607661729,0.5509,2345.5,2345.4,0.42625]
[1726607662117,0.5509,2345.5,2345.3,0.42626]
[1726607662517,0.5509,2345.5,2345.4,0.42625]
[1726607669637,1.64838802,2345.7,2345.5,0.42624]
[1726607669930,1.64838802,2345.7,2345.2,1.6547]
[1726607669931,1.1101,2345.7,2345.3,1.23]
[1726607670137,1.53632,2345.7,2345.3,1.23]
[1726607670432,1.53632,2345.7,2345.5,0.42623]
[1726607672025,1.1101,2345.7,2345.3,1.23]
[1726607672239,1.1101,2345.7,2345.3,2.29568]
[1726607672426,5.80975873,2346.0,2345.8,0.42618]
[1726607672427,5.25768802,2346.0,2345.8,0.42618]
[1726607672735,5.25768802,2346.0,2345.9,0.42616]
[1726607672736,6.4611,2346.0,2345.9,0.42616]
[1726607673031,2.73225,2346.0,2345.9,0.42616]
[1726607673237,2.3061,2346.0,2345.9,0.42616]
[1726607674648,2.3061,2346.0,2345.8,0.42617]
[1726607677535,2.3061,2346.0,2345.9,0.42616]
[1726607684642,3.40878802,2346.0,2345.9,0.42616]
[1726607688645,3.96085873,2346.0,2345.9,0.42616]
[1726607689052,4.38700873,2346.0,2345.9,0.42616]
[1726607699351,7.59480873,2346.0,2345.9,0.42616]
[1726607700545,7.16865873,2346.0,2345.9,0.42616]
[1726607700945,7.59480873,2346.0,2345.9,0.42616]
[1726607701250,4.38700873,2346.0,2345.9,0.42616]
[1726607702248,7.59480873,2346.0,2345.8,0.97187]
[1726607702448,1.10359181,2345.9,2345.8,0.97187]
[1726607702751,0.42623,2345.6,2345.4,0.42625]
[1726607702949,3.74402552,2345.5,2345.2,1.0827]
[1726607703145,3.31777552,2345.5,2345.4,0.42625]
[1726607703351,3.06565329,2345.5,2345.4,0.42625]
[1726607703552,2.63941329,2345.5,2345.4,0.42625]
[1726607703952,3.06565329,2345.5,2345.4,0.42625]
[1726607704155,1.41074,2345.5,2345.4,0.42625]
[1726607704362,3.06565329,2345.5,2345.4,0.42625]
[1726607704654,2.63941329,2345.5,2345.4,0.42625]
[1726607707158,3.86941329,2345.5,2345.4,0.42625]
[1726607707556,3.31796632,2345.5,2345.4,0.42625]
[1726607707756,3.86941329,2345.5,2345.4,0.42625]
[1726607708057,2.08800806,2345.5,2345.4,0.42625]
[1726607708260,5.29580806,2345.5,2345.4,0.42625]
[1726607708763,1.10350806,2345.7,2345.5,1.0656]
[1726607708954,1.10350806,2345.9,2345.8,0.42618]
[1726607711146,1.10350806,2346.0,2345.9,0.42616]
[1726607714760,1.65491329,2346.0,2345.9,0.42616]
[1726607715358,1.1037745,2346.0,2345.9,0.42616]
[1726607715561,2.14701329,2346.1,2345.9,0.42616]
[1726607715862,0.4921,2346.1,2346.0,0.5183]
[1726607717463,0.4921,2346.1,2346.0,0.94445]
[1726607717966,2.14728193,2346.1,2346.0,0.94445]
[1726607718353,2.14728193,2346.1,2346.0,1.45805]
[1726607719557,1.65518193,2346.2,2346.1,0.42613]
[1726607719763,1.65518193,2346.2,2346.1,2.14793]
[1726607719961,1.10352121,2346.2,2346.1,2.14793]
[1726607721255,1.10352121,2346.3,2346.2,0.42611]
[1726607722156,1.103413,2346.3,2346.2,0.42611]
[1726607722860,2.88518193,2346.3,2346.1,0.91791]
[1726607723058,2.88518193,2346.3,2346.2,0.42611]
[1726607723861,2.88518193,2346.3,2346.1,0.4918]
[1726607724059,1.10311611,2346.2,2346.1,0.91793]
[1726607727059,2.33311611,2346.2,2346.1,0.42613]
[1726607727364,2.88518193,2346.2,2346.1,0.42613]
[1726607728372,2.33316864,2346.2,2346.1,0.42613]
[1726607728563,1.10316864,2346.2,2346.1,0.42613]
[1726607729670,1.10316864,2346.3,2346.2,0.42611]
[1726607731858,1.10316864,2346.4,2346.3,0.42609]
[1726607732059,4.31096864,2346.5,2346.4,0.42607]
[1726607732363,4.31096864,2346.5,2346.4,1.12627666]
[1726607732364,3.2078,2346.5,2346.4,1.12627666]
[1726607732570,3.2078,2346.5,2346.4,2.86447666]
[1726607733670,3.2078,2346.5,2346.4,7.12607666]
[1726607734269,3.2078,2346.5,2346.4,2.86447666]
[1726607734873,3.2078,2346.5,2346.4,1.63447666]
[1726607737568,2.33316864,2346.8,2346.6,0.42602]
[1726607737769,3.2078,2346.7,2346.6,0.42602]
[1726607738073,2.33316864,2346.8,2346.6,0.42602]
[1726607738458,1.23,2346.8,2346.6,0.42602]
[1726607738768,2.33316864,2346.8,2346.6,0.42602]
[1726607739169,0.4811,2346.7,2346.6,0.42602]
[1726607740566,1.10316864,2346.9,2346.8,0.426]
[1726607740766,1.10316864,2346.9,2346.8,1.656]
[1726607741069,0.99,2347.1,2346.8,5.4908]
[1726607741374,1.10316864,2347.2,2347.1,0.42595]
[1726607742663,1.10316864,2347.2,2347.1,4.68675]
[1726607742863,1.10316864,2347.2,2347.1,0.42595]
[1726607743068,1.10316864,2347.2,2347.1,4.68675]
[1726607743472,1.10316864,2347.2,2347.1,0.42595]
[1726607743973,0.4839,2347.3,2347.1,0.42595]
[1726607744574,0.4839,2347.3,2347.2,0.42593]
[1726607745671,0.4839,2347.3,2346.9,4.4378]
[1726607745879,0.4839,2347.3,2347.2,0.42593]
[1726607753779,0.4839,2347.3,2347.2,1.45813]
[1726607755380,0.4839,2347.3,2347.2,1.93973]
[1726607761186,0.4839,2347.3,2347.2,3.16973]
[1726607763295,0.4839,2347.3,2347.2,1.93973]
[1726607771091,1.06483,2347.2,2346.8,3.2078]
[1726607771302,0.42597,2347.0,2346.8,3.63379]
[1726607771500,1.23,2347.1,2346.8,3.2078]
[1726607771798,0.8271,2346.9,2346.8,3.2078]
[1726607772192,0.8271,2346.9,2346.8,3.6338]
[1726607777093,0.8271,2346.9,2346.8,0.426]
[1726607778800,0.8271,2346.9,2346.7,2.4648]
[1726607779609,0.8271,2346.9,2346.8,0.426]
[1726607782805,2.0571,2346.9,2346.5,1.11168067]
[1726607783007,2.0571,2346.9,2346.4,1.66752101]
[1726607783008,0.42603,2346.7,2346.4,1.96288067]
[1726607783203,1.10032294,2346.7,2346.5,0.42605]
[1726607783508,0.411,2346.6,2346.5,0.42605]
[1726607788807,1.10032294,2346.7,2346.6,0.42604]
[1726607789005,1.51832294,2346.8,2346.6,1.23]
[1726607789511,1.51832294,2346.8,2346.7,0.4128]
[1726607791407,1.51832294,2346.8,2346.7,0.83882]
[1726607792106,1.51832294,2346.8,2346.7,0.4128]
[1726607792408,1.51832294,2346.8,2346.7,0.83882]
[1726607794310,7.00992294,2346.8,2346.1,2.34168067]
[1726607794507,8.25357513,2346.6,2346.0,5.2341]
[1726607794714,2.57364072,2346.5,2346.0,4.0041]
[1726607794914,1.65614,2346.1,2345.9,0.42616]
[1726607795111,0.3968,2346.0,2345.9,0.42616]
[1726607795417,0.7923,2346.0,2345.9,0.42616]
[1726607798913,0.7923,2346.0,2345.6,1.23]
[1726607799218,0.7923,2346.0,2345.6,0.42621]
[1726607799219,1.65617,2345.9,2345.6,0.42621]
[1726607799714,0.42618,2345.8,2345.5,1.23083]
[1726607799919,1.23,2345.6,2345.5,0.4023]
[1726607800214,1.65623,2345.6,2345.3,0.42626]
[1726607800417,0.8174,2345.5,2345.3,0.42626]
[1726607801116,0.8174,2345.5,2345.4,1.65625]
[1726607801319,0.82839,2345.8,2345.5,0.42622]
[1726607801521,1.24739,2345.8,2345.5,1.23382]
[1726607802509,1.24739,2345.8,2345.1,3.2078]
[1726607802510,2.66,2345.6,2345.1,3.2078]
[1726607802723,3.2078,2345.7,2345.4,0.42625]
[1726607803017,1.24739,2345.8,2345.5,0.42623]
[1726607803215,4.45519,2345.8,2345.5,0.42623]
[1726607806218,0.4262,2345.7,2345.5,0.42623]
[1726607809318,4.45519,2345.8,2345.6,0.42622]
[1726607809618,0.4262,2345.7,2345.5,0.42623]
[1726607813412,0.4262,2345.7,2345.6,0.8105]
[1726607813616,4.45519,2345.8,2345.6,1.23672]
[1726607814113,4.45519,2345.8,2345.6,0.8105]
[1726607814508,4.029,2345.8,2345.6,0.8105]
[1726607814715,0.4262,2345.7,2345.6,0.8105]
[1726607815115,4.45519,2345.8,2345.6,1.23672]
[1726607815315,4.029,2345.8,2345.7,0.4262]
[1726607815521,0.3751,2346.1,2345.6,0.8105]
[1726607815522,3.63394,2346.1,2345.6,3.4705]
[1726607815723,3.63394,2346.1,2345.7,0.4138]
[1726607815724,4.0407,2346.1,2345.7,0.4138]
[1726607815916,4.46684,2346.1,2345.8,0.42617]
[1726607816110,0.42615,2346.0,2345.8,0.42617]
[1726607816310,4.46684,2346.1,2345.9,0.84516]
[1726607816618,4.0407,2346.1,2345.9,0.84515]
[1726607816818,4.0407,2346.1,2346.0,0.4256]
[1726607817524,4.46683,2346.1,2346.0,0.4256]
[1726607817718,4.0407,2346.1,2346.0,0.4256]
[1726607818022,0.42617,2345.9,2345.7,0.42619]
[1726607818229,0.4217,2345.8,2345.7,0.42619]
[1726607823530,0.4217,2345.8,2345.6,0.85181]
[1726607823729,0.4217,2345.8,2345.7,0.4262]
[1726607829633,0.84788,2345.8,2345.7,0.4262]
[1726607829830,0.4217,2345.8,2345.7,0.4262]
[1726607835137,0.84788,2345.8,2345.7,0.4262]
[1726607836835,0.4217,2345.8,2345.7,0.4262]
[1726607837741,1.52187072,2345.8,2345.7,0.4262]
[1726607837938,0.4217,2345.8,2345.7,0.4262]
[1726607839029,1.52187072,2345.8,2345.7,0.4262]
[1726607839844,2.07218441,2345.8,2345.7,0.4262]
[1726607840236,0.4217,2345.8,2345.7,0.4262]
[1726607840738,2.07671081,2345.8,2345.7,0.4262]
[1726607841243,0.4217,2345.8,2345.7,0.4262]
[1726607841442,2.07690285,2345.8,2345.7,0.4262]
[1726607842139,2.07691147,2345.8,2345.7,0.4262]
[1726607842343,1.65542331,2345.8,2345.7,0.4262]
[1726607842546,1.65542331,2345.9,2345.8,0.42618]
[1726607842743,2.62679588,2346.0,2345.8,0.42618]
[1726607842936,1.655465,2345.9,2345.8,0.81818]
[1726607843239,2.62679588,2346.0,2345.8,0.81818]
[1726607845642,2.20064588,2345.9,2345.8,0.81818]
[1726607846343,2.20064588,2346.0,2345.8,1.45746]
[1726607846545,2.75997137,2346.0,2345.9,8.4712]
[1726607846743,1.01422708,2346.3,2346.1,1.06533]
[1726607846947,1.01422708,2346.4,2346.3,0.42609]
[1726607847148,3.03754588,2346.7,2346.6,0.42604]
[1726607847347,2.61624588,2346.7,2346.6,0.42604]
[1726607847558,0.4213,2346.9,2346.5,4.65579468]
[1726607847745,1.23,2346.8,2346.6,0.81753]
[1726607847945,0.3996,2346.7,2346.6,0.3915]
[1726607848255,0.3996,2346.7,2346.6,0.81754]
[1726607848550,0.3996,2346.7,2346.6,0.3915]
[1726607848745,0.3996,2346.7,2346.6,0.81754]
[1726607849250,0.3996,2346.7,2346.6,0.42604]
[1726607851550,0.4213,2346.9,2346.8,0.426]
[1726607851752,0.4213,2346.9,2346.7,1.22621]
[1726607851946,0.4213,2346.9,2346.7,0.42601]
[1726607852651,0.4213,2346.9,2346.8,0.426]
[1726607852851,3.2078,2347.0,2346.9,0.42598]
[1726607855356,3.2078,2347.0,2346.8,0.42599]
[1726607858758,3.1293,2347.0,2346.8,0.42599]
[1726607860348,0.8375,2347.1,2347.0,0.42596]
[1726607860556,0.4133,2347.1,2347.0,0.42596]
[1726607860755,0.4098,2347.3,2346.9,2.66]
[1726607860963,1.2179,2347.3,2347.0,0.4001]
[1726607861151,1.2179,2347.3,2347.1,0.42595]
[1726607862248,1.2179,2347.3,2347.2,0.42593]
[1726607863761,1.2179,2347.3,2347.1,0.42593]
[1726607866061,1.2179,2347.3,2347.1,0.42594]
[1726607876763,1.64381,2347.3,2347.1,0.42594]
[1726607877164,1.2179,2347.3,2347.1,0.42593]
[1726607877365,1.2179,2347.3,2347.1,1.65593]
[1726607878371,1.2179,2347.3,2347.2,0.42593]
[1726607878667,1.2179,2347.3,2347.1,1.65593]
[1726607879865,1.2179,2347.3,2347.2,0.42593]
[1726607880266,1.2179,2347.3,2347.1,1.65593]
[1726607881868,1.2179,2347.3,2347.2,0.42593]
[1726607882173,1.2179,2347.3,2347.1,1.65593]
[1726607882468,1.2179,2347.3,2347.2,0.42593]
[1726607883371,1.2179,2347.3,2347.1,1.23]
[1726607883372,1.2179,2347.3,2347.1,1.65594]
[1726607883564,1.2179,2347.3,2347.1,0.42594]
[1726607885169,1.64381,2347.3,2347.1,0.42594]
[1726607885674,1.2179,2347.3,2347.1,0.42594]
[1726607886075,1.2179,2347.3,2347.2,0.42593]
[1726607890273,0.4163,2347.3,2347.2,0.42593]
[1726607892479,2.61694588,2347.3,2347.2,0.42593]
[1726607892976,2.61694588,2347.3,2347.0,1.6301]
[1726607893279,0.3946,2347.2,2347.1,0.42595]
[1726607893478,2.59524588,2347.2,2347.1,0.42595]
[1726607893681,0.3946,2347.2,2347.1,0.42595]
[1726607894069,2.20064588,2347.2,2347.1,1.65595]
[1726607894271,2.98574588,2347.5,2347.4,0.42589]
[1726607894481,2.98574588,2347.5,2347.4,1.65589]
[1726607894681,0.7851,2347.5,2347.4,1.65589]
[1726607896470,0.7851,2347.5,2347.4,2.17006043]
[1726607897383,0.7851,2347.5,2347.4,1.65589]
[1726607897675,0.7851,2347.5,2347.4,2.68422708]
[1726607900885,2.59294588,2347.6,2347.4,6.51833708]
[1726607901188,2.59294588,2347.6,2347.5,0.51416967]
[1726607901387,3.00394588,2347.6,2347.5,0.51416967]
[1726607901687,3.00868638,2347.6,2347.5,0.51416967]
[1726607902087,3.00868638,2347.6,2347.4,2.17005886]
[1726607902881,3.00868638,2347.6,2347.5,0.51417284]
[1726607903183,3.00868638,2347.6,2347.4,2.17005886]
[1726607903383,3.00868638,2347.6,2347.5,0.5141728]
[1726607904191,3.00868638,2347.6,2347.4,2.17005886]
[1726607904881,2.20538638,2347.6,2347.5,0.42587]
[1726607905093,2.20538638,2347.6,2347.5,0.94004414]
[1726607905484,2.20538638,2347.6,2347.5,0.42587]
[1726607905678,2.20538638,2347.6,2347.5,0.94003963]
[1726607907990,2.20538638,2347.6,2347.5,0.42587]
[1726607908189,2.20538638,2347.6,2347.4,1.65588]
[1726607908495,2.20538638,2347.6,2347.5,0.51417095]
[1726607908988,2.20538638,2347.6,2347.5,0.94004095]
[1726607909988,2.20538638,2347.6,2347.5,0.42587]
[1726607910192,2.20538638,2347.6,2347.4,1.65588]
[1726607910392,2.20538638,2347.6,2347.5,0.42587]
[1726607910895,2.20538638,2347.6,2347.5,0.94004432]
[1726607914698,2.20538638,2347.6,2347.5,0.51417432]
[1726607914998,2.20538638,2347.6,2347.5,0.51417309]
[1726607915294,2.20538638,2347.6,2347.5,0.42587]
[1726607915493,2.20538638,2347.6,2347.5,0.94004647]
[1726607915800,2.63124638,2347.6,2347.5,0.51417556]
[1726607915991,2.63124638,2347.6,2347.0,0.42596]
[1726607915992,0.42592,2347.3,2347.0,0.42596]
[1726607916294,1.65431122,2347.2,2347.0,1.65595]
[1726607916503,1.65431122,2347.2,2347.0,1.23]
[1726607916693,1.65431122,2347.2,2347.0,1.65595]
[1726607917197,0.3857,2347.1,2347.0,1.65595]
[1726607917389,0.3857,2347.1,2347.0,1.23]
[1726607917593,0.3857,2347.1,2347.0,1.65596]
[1726607919294,1.65431122,2347.2,2347.1,0.42595]
[1726607922697,1.65431122,2347.3,2347.2,0.42593]
[1726607922900,1.65431122,2347.4,2347.3,0.42591]
[1726607923092,1.65431122,2347.4,2347.3,0.83771]
[1726607923296,1.65431122,2347.4,2347.3,1.25231]
[1726607924003,1.65431122,2347.5,2347.4,0.42589]
[1726607924202,2.6191483,2347.6,2347.4,1.65589]
[1726607928597,2.2057483,2347.5,2347.4,1.65589]
[1726607928798,2.2057483,2347.5,2347.4,2.16429745]
[1726607929101,2.2057483,2347.5,2347.4,1.65589]
[1726607929301,2.2057483,2347.5,2347.4,2.16429735]